[Event "Titled Tuesday Blitz March 07 Early 2023"]
[White "Korchmar, Vasiliy"]
[Black "Sargissyan, Sargis"]
[WhiteFideId "24131750"]
[BlackFideId "13303210"]
[WhiteElo "2370"]
[BlackElo "2109"]
[Result "1-0"]
[Round "09"]
[TimeControl "180+2"]
[Date "2023.03.07"]
[WhiteClock "0:00:05"]
[BlackClock "0:00:04"]

1. e4 {[%clk 0:03:00]}  e5 {[%clk 0:02:58]} 2. Nf3 {[%clk 0:03:00]}  Nc6 {[%clk 0:02:59]} 3. Bc4 {[%clk 0:03:01]}  Bc5 {[%clk 0:02:58]} 4. c3 {[%clk 0:02:59]}  Nf6 {[%clk 0:02:58]} 5. d3 {[%clk 0:03:00]}  O-O {[%clk 0:02:56]} 6. Bg5 {[%clk 0:03:00]}  h6 {[%clk 0:02:55]} 7. Bh4 {[%clk 0:03:00]}  Be7 {[%clk 0:02:55]} 8. Nbd2 {[%clk 0:03:00]}  d6 {[%clk 0:02:55]} 9. O-O {[%clk 0:02:59]}  Nh5 {[%clk 0:02:50]} 10. Bg3 {[%clk 0:02:59]}  Nxg3 {[%clk 0:02:42]} 11. hxg3 {[%clk 0:03:00]}  Kh8 {[%clk 0:02:29]} 12. d4 {[%clk 0:02:41]}  f5 {[%clk 0:02:28]} 13. dxe5 {[%clk 0:02:37]}  dxe5 {[%clk 0:02:24]} 14. exf5 {[%clk 0:02:37]}  Bxf5 {[%clk 0:02:23]} 15. Qe2 {[%clk 0:02:37]}  Bd6 {[%clk 0:02:09]} 16. Bd3 {[%clk 0:02:24]}  Qf6 {[%clk 0:01:42]} 17. Bxf5 {[%clk 0:02:15]}  Qxf5 {[%clk 0:01:42]} 18. Ne4 {[%clk 0:02:16]}  Rad8 {[%clk 0:01:41]} 19. Rad1 {[%clk 0:02:15]}  Be7 {[%clk 0:01:41]} 20. Rfe1 {[%clk 0:02:10]}  a6 {[%clk 0:01:39]} 21. Rxd8 {[%clk 0:01:57]}  Rxd8 {[%clk 0:01:38]} 22. Qc4 {[%clk 0:01:52]}  Kh7 {[%clk 0:01:20]} 23. a4 {[%clk 0:01:29]}  Rf8 {[%clk 0:01:11]} 24. g4 {[%clk 0:01:21]}  Qc8 {[%clk 0:01:04]} 25. g5 {[%clk 0:01:20]}  Rf4 {[%clk 0:01:01]} 26. gxh6 {[%clk 0:01:10]}  gxh6 {[%clk 0:00:59]} 27. Qd5 {[%clk 0:00:54]}  Qf5 {[%clk 0:00:52]} 28. Ng3 {[%clk 0:00:54]}  Qg6 {[%clk 0:00:28]} 29. Nxe5 {[%clk 0:00:49]}  Nxe5 {[%clk 0:00:26]} 30. Qxe5 {[%clk 0:00:46]}  Bd6 {[%clk 0:00:26]} 31. Qd5 {[%clk 0:00:37]}  Rxf2 {[%clk 0:00:22]} 32. Kxf2 {[%clk 0:00:23]}  Bxg3+ {[%clk 0:00:21]} 33. Kf1 {[%clk 0:00:20]}  Qf6+ {[%clk 0:00:19]} 34. Ke2 {[%clk 0:00:13]}  Qe7+ {[%clk 0:00:17]} 35. Kf3 {[%clk 0:00:10]}  Bxe1 {[%clk 0:00:15]} 36. Qxb7 {[%clk 0:00:07]}  a5 {[%clk 0:00:11]} 37. Qd5 {[%clk 0:00:06]}  Qf6+ {[%clk 0:00:10]} 38. Ke2 {[%clk 0:00:05]}  Qe7+ {[%clk 0:00:10]} 39. Kd1 {[%clk 0:00:05]}  Bh4 {[%clk 0:00:10]} 40. Qf5+ {[%clk 0:00:04]}  Kg7 {[%clk 0:00:09]} 41. Qxa5 {[%clk 0:00:04]}  Bg5 {[%clk 0:00:08]} 42. Kc2 {[%clk 0:00:04]}  Qe4+ {[%clk 0:00:08]} 43. Kb3 {[%clk 0:00:04]}  Qxg2 {[%clk 0:00:07]} 44. Qxc7+ {[%clk 0:00:04]}  Kg6 {[%clk 0:00:07]} 45. a5 {[%clk 0:00:04]}  Bc1 {[%clk 0:00:06]} 46. Qd6+ {[%clk 0:00:03]}  Kg7 {[%clk 0:00:05]} 47. Qe7+ {[%clk 0:00:03]}  Kg6 {[%clk 0:00:05]} 48. Qe6+ {[%clk 0:00:04]}  Kg7 {[%clk 0:00:05]} 49. Qe7+ {[%clk 0:00:04]}  Kg6 {[%clk 0:00:05]} 50. Qe8+ {[%clk 0:00:04]}  Kg7 {[%clk 0:00:05]} 51. Qd7+ {[%clk 0:00:04]}  Kg6 {[%clk 0:00:06]} 52. Qe6+ {[%clk 0:00:05]}  Kg7 {[%clk 0:00:06]} 53. Qe5+ {[%clk 0:00:05]}  Kg6 {[%clk 0:00:06]} 54. c4 {[%clk 0:00:06]}  Qf3+ {[%clk 0:00:04]} 55. Ka4 {[%clk 0:00:05]}  Qc6+ {[%clk 0:00:05]} 56. Ka3 {[%clk 0:00:05]}  Qxc4 {[%clk 0:00:04]} 57. Qd6+ {[%clk 0:00:05]}  Kg5 {[%clk 0:00:04]} 58. a6 {[%clk 0:00:05]} 1-0


[Site "https://www.chess.com"]

[Event "Titled Tuesday Blitz March 07 Early 2023"]
[White "Ansh M Shah"]
[Black "Kowalczyk, Pawel"]
[WhiteFideId "25033379"]
[BlackFideId "1130641"]
[WhiteElo "2084"]
[BlackElo "2324"]
[Result "1-0"]
[Round "09"]
[TimeControl "180+2"]
[Date "2023.03.07"]
[WhiteClock "0:00:04"]
[BlackClock "0:00:36"]

1. d4 {[%clk 0:03:00]}  Nf6 {[%clk 0:02:58]} 2. c4 {[%clk 0:03:00]}  g6 {[%clk 0:02:57]} 3. h4 {[%clk 0:02:56]}  h5 {[%clk 0:02:56]} 4. Nc3 {[%clk 0:02:53]}  d5 {[%clk 0:02:54]} 5. Bg5 {[%clk 0:02:49]}  Ne4 {[%clk 0:02:53]} 6. cxd5 {[%clk 0:02:40]}  Nxc3 {[%clk 0:02:51]} 7. bxc3 {[%clk 0:02:40]}  Qxd5 {[%clk 0:02:51]} 8. Nf3 {[%clk 0:02:36]}  Bg7 {[%clk 0:02:51]} 9. Nd2 {[%clk 0:02:36]}  c5 {[%clk 0:02:48]} 10. e4 {[%clk 0:02:35]}  Qd6 {[%clk 0:02:45]} 11. e5 {[%clk 0:02:27]}  Qc7 {[%clk 0:02:43]} 12. Bc4 {[%clk 0:02:22]}  Nc6 {[%clk 0:02:38]} 13. Rc1 {[%clk 0:02:18]}  O-O {[%clk 0:02:34]} 14. O-O {[%clk 0:02:18]}  Bg4 {[%clk 0:02:32]} 15. Qc2 {[%clk 0:02:13]}  e6 {[%clk 0:02:29]} 16. Nb3 {[%clk 0:01:57]}  cxd4 {[%clk 0:02:28]} 17. cxd4 {[%clk 0:01:58]}  Qb6 {[%clk 0:02:23]} 18. Qe4 {[%clk 0:01:20]}  Bf5 {[%clk 0:02:20]} 19. Qf4 {[%clk 0:01:19]}  Nb4 {[%clk 0:02:10]} 20. Nc5 {[%clk 0:00:49]}  Rfc8 {[%clk 0:01:57]} 21. Nd7 {[%clk 0:00:45]}  Qa5 {[%clk 0:01:49]} 22. Nf6+ {[%clk 0:00:42]}  Kh8 {[%clk 0:01:49]} 23. Bh6 {[%clk 0:00:31]}  Nxa2 {[%clk 0:01:39]} 24. Bxa2 {[%clk 0:00:27]}  Qxa2 {[%clk 0:01:38]} 25. Qg5 {[%clk 0:00:16]}  Qe2 {[%clk 0:01:31]} 26. f3 {[%clk 0:00:09]}  Rg8 {[%clk 0:00:47]} 27. Bxg7+ {[%clk 0:00:09]}  Kxg7 {[%clk 0:00:45]} 28. Nxh5+ {[%clk 0:00:09]}  Kf8 {[%clk 0:00:45]} 29. Qh6+ {[%clk 0:00:05]}  Ke7 {[%clk 0:00:44]} 30. Qg5+ {[%clk 0:00:06]}  Kf8 {[%clk 0:00:42]} 31. Ng3 {[%clk 0:00:03]}  Qd3 {[%clk 0:00:39]} 32. Rc7 {[%clk 0:00:03]}  Qxd4+ {[%clk 0:00:39]} 33. Kh2 {[%clk 0:00:03]}  Qxe5 {[%clk 0:00:37]} 34. Qe7+ {[%clk 0:00:02]}  Kg7 {[%clk 0:00:35]} 35. Qxf7+ {[%clk 0:00:03]}  Kh6 {[%clk 0:00:36]} 36. Qh7# {[%clk 0:00:04]} 1-0


[Site "https://www.chess.com"]

[Event "Titled Tuesday Blitz March 07 Early 2023"]
[White "Martynov, Pavel"]
[Black "Delorme, Alban"]
[WhiteFideId "4101260"]
[BlackFideId "623636"]
[WhiteElo "2314"]
[BlackElo "2196"]
[Result "1-0"]
[Round "09"]
[TimeControl "180+2"]
[Date "2023.03.07"]
[WhiteClock "0:01:03"]
[BlackClock "0:00:01"]

1. e4 {[%clk 0:03:00]}  c5 {[%clk 0:02:57]} 2. Nf3 {[%clk 0:03:01]}  d6 {[%clk 0:02:56]} 3. Bb5+ {[%clk 0:02:59]}  Bd7 {[%clk 0:02:56]} 4. Bxd7+ {[%clk 0:02:59]}  Nxd7 {[%clk 0:02:57]} 5. O-O {[%clk 0:02:54]}  Ngf6 {[%clk 0:02:58]} 6. Re1 {[%clk 0:02:54]}  g6 {[%clk 0:02:58]} 7. c3 {[%clk 0:02:53]}  Bg7 {[%clk 0:02:58]} 8. d4 {[%clk 0:02:53]}  cxd4 {[%clk 0:02:59]} 9. cxd4 {[%clk 0:02:52]}  d5 {[%clk 0:03:00]} 10. e5 {[%clk 0:02:42]}  Ne4 {[%clk 0:02:55]} 11. Nbd2 {[%clk 0:02:37]}  Nxd2 {[%clk 0:02:55]} 12. Bxd2 {[%clk 0:02:36]}  e6 {[%clk 0:02:55]} 13. Bb4 {[%clk 0:02:25]}  a5 {[%clk 0:02:55]} 14. Bd6 {[%clk 0:02:25]}  Nb6 {[%clk 0:02:51]} 15. Rc1 {[%clk 0:02:23]}  Nc4 {[%clk 0:02:50]} 16. Rxc4 {[%clk 0:02:19]}  dxc4 {[%clk 0:02:49]} 17. d5 {[%clk 0:02:20]}  Bf8 {[%clk 0:02:26]} 18. dxe6 {[%clk 0:02:19]}  fxe6 {[%clk 0:02:25]} 19. Qd4 {[%clk 0:02:20]}  Qd7 {[%clk 0:02:11]} 20. Ng5 {[%clk 0:02:16]}  Bxd6 {[%clk 0:02:05]} 21. exd6 {[%clk 0:02:17]}  O-O {[%clk 0:02:05]} 22. Rxe6 {[%clk 0:02:13]}  Rae8 {[%clk 0:01:53]} 23. Rxe8 {[%clk 0:02:13]}  Rxe8 {[%clk 0:01:49]} 24. Qxc4+ {[%clk 0:02:14]}  Kg7 {[%clk 0:01:49]} 25. Qd4+ {[%clk 0:02:14]}  Kg8 {[%clk 0:01:46]} 26. h4 {[%clk 0:02:14]}  h6 {[%clk 0:01:17]} 27. Ne4 {[%clk 0:02:12]}  Rxe4 {[%clk 0:01:05]} 28. Qxe4 {[%clk 0:02:13]}  Qxd6 {[%clk 0:01:05]} 29. g3 {[%clk 0:02:06]}  b6 {[%clk 0:01:04]} 30. Kg2 {[%clk 0:02:05]}  Kg7 {[%clk 0:01:01]} 31. Qb7+ {[%clk 0:02:01]}  Kf6 {[%clk 0:00:59]} 32. Qf3+ {[%clk 0:01:58]}  Kg7 {[%clk 0:00:59]} 33. h5 {[%clk 0:01:56]}  gxh5 {[%clk 0:00:50]} 34. Qxh5 {[%clk 0:01:57]}  Qd4 {[%clk 0:00:47]} 35. b3 {[%clk 0:01:51]}  Qb2 {[%clk 0:00:44]} 36. Qg4+ {[%clk 0:01:49]}  Kh8 {[%clk 0:00:37]} 37. Qc8+ {[%clk 0:01:43]}  Kh7 {[%clk 0:00:36]} 38. Qb7+ {[%clk 0:01:43]}  Kh8 {[%clk 0:00:35]} 39. Qxb6 {[%clk 0:01:43]}  Qxa2 {[%clk 0:00:34]} 40. Qxh6+ {[%clk 0:01:43]}  Kg8 {[%clk 0:00:35]} 41. Qg5+ {[%clk 0:01:42]}  Kf7 {[%clk 0:00:34]} 42. Qd5+ {[%clk 0:01:41]}  Ke7 {[%clk 0:00:33]} 43. Qc5+ {[%clk 0:01:41]}  Kd7 {[%clk 0:00:32]} 44. b4 {[%clk 0:01:42]}  a4 {[%clk 0:00:30]} 45. b5 {[%clk 0:01:42]}  Qb3 {[%clk 0:00:28]} 46. b6 {[%clk 0:01:33]}  a3 {[%clk 0:00:22]} 47. Qc7+ {[%clk 0:01:33]}  Ke6 {[%clk 0:00:20]} 48. b7 {[%clk 0:01:33]}  Qd5+ {[%clk 0:00:14]} 49. Kh2 {[%clk 0:01:16]}  Qf3 {[%clk 0:00:07]} 50. Qc4+ {[%clk 0:01:11]}  Ke7 {[%clk 0:00:05]} 51. Qb4+ {[%clk 0:01:08]}  Kd7 {[%clk 0:00:03]} 52. b8=Q {[%clk 0:01:05]}  Qxf2+ {[%clk 0:00:03]} 53. Kh3 {[%clk 0:01:06]}  Qf5+ {[%clk 0:00:02]} 54. Kh4 {[%clk 0:01:04]}  Qh7+ {[%clk 0:00:01]} 55. Kg4 {[%clk 0:01:05]}  Qg6+ {[%clk 0:00:02]} 56. Kf4 {[%clk 0:01:05]}  Qf6+ {[%clk 0:00:01]} 57. Ke3 {[%clk 0:01:06]}  Qe5+ {[%clk 0:00:01]} 58. Qxe5 {[%clk 0:01:03]} 1-0


[Site "https://www.chess.com"]

[Event "Titled Tuesday Blitz March 07 Early 2023"]
[White "Rastbod, Ali"]
[Black "Afanasieva, Alexandra"]
[WhiteFideId "12567477"]
[BlackFideId "34126926"]
[WhiteElo "2211"]
[BlackElo "1763"]
[Result "1-0"]
[Round "09"]
[TimeControl "180+2"]
[Date "2023.03.07"]
[WhiteClock "0:00:04"]
[BlackClock "0:00:02"]

1. d4 {[%clk 0:03:00]}  Nf6 {[%clk 0:02:57]} 2. Nc3 {[%clk 0:02:58]}  d5 {[%clk 0:02:56]} 3. Bf4 {[%clk 0:02:59]}  c5 {[%clk 0:02:48]} 4. e3 {[%clk 0:02:58]}  a6 {[%clk 0:02:48]} 5. dxc5 {[%clk 0:02:57]}  Nc6 {[%clk 0:02:49]} 6. Nf3 {[%clk 0:02:54]}  Bg4 {[%clk 0:02:45]} 7. h3 {[%clk 0:02:49]}  Bxf3 {[%clk 0:02:34]} 8. Qxf3 {[%clk 0:02:49]}  e6 {[%clk 0:02:15]} 9. O-O-O {[%clk 0:01:57]}  Bxc5 {[%clk 0:02:07]} 10. e4 {[%clk 0:01:56]}  d4 {[%clk 0:02:02]} 11. e5 {[%clk 0:01:52]}  Nd5 {[%clk 0:01:50]} 12. Nxd5 {[%clk 0:01:48]}  Qxd5 {[%clk 0:01:47]} 13. Qxd5 {[%clk 0:01:45]}  exd5 {[%clk 0:01:48]} 14. Bg3 {[%clk 0:01:39]}  O-O {[%clk 0:01:40]} 15. f4 {[%clk 0:01:37]}  Rfe8 {[%clk 0:01:25]} 16. Bh4 {[%clk 0:01:26]}  Rac8 {[%clk 0:01:19]} 17. a3 {[%clk 0:01:09]}  d3 {[%clk 0:01:19]} 18. Rxd3 {[%clk 0:01:06]}  Nd4 {[%clk 0:01:04]} 19. c3 {[%clk 0:00:53]}  Nf5 {[%clk 0:00:59]} 20. Be1 {[%clk 0:00:53]}  d4 {[%clk 0:00:56]} 21. Kb1 {[%clk 0:00:49]}  Red8 {[%clk 0:00:38]} 22. Be2 {[%clk 0:00:35]}  Ne3 {[%clk 0:00:30]} 23. Bf3 {[%clk 0:00:32]}  Nc4 {[%clk 0:00:23]} 24. Be4 {[%clk 0:00:14]}  b5 {[%clk 0:00:07]} 25. Bf2 {[%clk 0:00:13]}  Ne3 {[%clk 0:00:07]} 26. Bxe3 {[%clk 0:00:12]}  dxe3 {[%clk 0:00:07]} 27. Kc2 {[%clk 0:00:12]}  Rxd3 {[%clk 0:00:06]} 28. Bxd3 {[%clk 0:00:13]}  f6 {[%clk 0:00:06]} 29. e6 {[%clk 0:00:12]}  Kf8 {[%clk 0:00:06]} 30. Bxh7 {[%clk 0:00:11]}  Ke7 {[%clk 0:00:06]} 31. g4 {[%clk 0:00:10]}  Rh8 {[%clk 0:00:03]} 32. Bf5 {[%clk 0:00:08]}  g5 {[%clk 0:00:04]} 33. fxg5 {[%clk 0:00:08]}  fxg5 {[%clk 0:00:05]} 34. Rd1 {[%clk 0:00:07]}  Bd6 {[%clk 0:00:04]} 35. Kd3 {[%clk 0:00:07]}  Rxh3 {[%clk 0:00:04]} 36. Re1 {[%clk 0:00:07]}  Bc5 {[%clk 0:00:03]} 37. b4 {[%clk 0:00:06]}  Bb6 {[%clk 0:00:03]} 38. Ke4 {[%clk 0:00:07]}  Rh2 {[%clk 0:00:03]} 39. Rd1 {[%clk 0:00:05]}  Rd2 {[%clk 0:00:04]} 40. Re1 {[%clk 0:00:04]}  Rc2 {[%clk 0:00:04]} 41. Kd3 {[%clk 0:00:03]}  Rd2+ {[%clk 0:00:04]} 42. Ke4 {[%clk 0:00:04]}  Rf2 {[%clk 0:00:05]} 43. Kd5 {[%clk 0:00:03]}  Rd2+ {[%clk 0:00:05]} 44. Kc6 {[%clk 0:00:03]}  Ba7 {[%clk 0:00:05]} 45. Kb7 {[%clk 0:00:04]}  Bb8 {[%clk 0:00:02]} 46. Kxb8 {[%clk 0:00:04]}  e2 {[%clk 0:00:02]} 47. Kb7 {[%clk 0:00:04]} 1-0


[Site "https://www.chess.com"]

[Event "Titled Tuesday Blitz March 07 Early 2023"]
[White "Manelyuk, Daniil"]
[Black "Ronka, Erik"]
[WhiteFideId "44173920"]
[BlackFideId "505080"]
[WhiteElo "2259"]
[BlackElo "2264"]
[Result "1-0"]
[Round "09"]
[TimeControl "180+2"]
[Date "2023.03.07"]
[WhiteClock "0:02:09"]
[BlackClock "0:00:25"]

1. e4 {[%clk 0:02:52]}  c5 {[%clk 0:02:59]} 2. Nf3 {[%clk 0:02:52]}  d6 {[%clk 0:02:59]} 3. d4 {[%clk 0:02:52]}  cxd4 {[%clk 0:03:00]} 4. Nxd4 {[%clk 0:02:53]}  Nf6 {[%clk 0:03:00]} 5. Nc3 {[%clk 0:02:53]}  a6 {[%clk 0:02:57]} 6. f3 {[%clk 0:02:52]}  e6 {[%clk 0:02:54]} 7. Be3 {[%clk 0:02:52]}  Nbd7 {[%clk 0:02:53]} 8. Qd2 {[%clk 0:02:52]}  b5 {[%clk 0:02:50]} 9. O-O-O {[%clk 0:02:51]}  Nb6 {[%clk 0:02:49]} 10. e5 {[%clk 0:02:24]}  dxe5 {[%clk 0:02:32]} 11. Ndxb5 {[%clk 0:02:24]}  Qxd2+ {[%clk 0:02:27]} 12. Rxd2 {[%clk 0:02:25]}  axb5 {[%clk 0:01:37]} 13. Bxb6 {[%clk 0:02:23]}  Nd7 {[%clk 0:01:01]} 14. Bxb5 {[%clk 0:02:18]}  Bb4 {[%clk 0:00:52]} 15. Rhd1 {[%clk 0:02:13]}  O-O {[%clk 0:00:24]} 16. Bxd7 {[%clk 0:02:09]}  Bxd7 {[%clk 0:00:25]} 17. Rxd7 {[%clk 0:02:09]} 1-0


[Site "https://www.chess.com"]

[Event "Titled Tuesday Blitz March 07 Early 2023"]
[White "Buksa, Nataliya"]
[Black "Fiorito, Francisco"]
[WhiteFideId "14123622"]
[BlackFideId "180165"]
[WhiteElo "2316"]
[BlackElo "2341"]
[Result "1-0"]
[Round "09"]
[TimeControl "180+2"]
[Date "2023.03.07"]
[WhiteClock "0:00:17"]
[BlackClock "0:00:37"]

1. d4 {[%clk 0:03:00]}  Nf6 {[%clk 0:02:56]} 2. Nc3 {[%clk 0:03:01]}  d5 {[%clk 0:02:56]} 3. Bf4 {[%clk 0:03:01]}  c5 {[%clk 0:02:54]} 4. e3 {[%clk 0:03:01]}  cxd4 {[%clk 0:02:54]} 5. exd4 {[%clk 0:03:02]}  Bg4 {[%clk 0:02:54]} 6. Be2 {[%clk 0:03:00]}  Bxe2 {[%clk 0:02:53]} 7. Qxe2 {[%clk 0:03:01]}  a6 {[%clk 0:02:53]} 8. Nf3 {[%clk 0:03:01]}  Nc6 {[%clk 0:02:54]} 9. Be3 {[%clk 0:02:39]}  e6 {[%clk 0:02:52]} 10. O-O {[%clk 0:02:39]}  Bd6 {[%clk 0:02:50]} 11. a3 {[%clk 0:02:38]}  h6 {[%clk 0:02:48]} 12. Qd3 {[%clk 0:02:38]}  O-O {[%clk 0:02:48]} 13. h3 {[%clk 0:02:39]}  Qb6 {[%clk 0:02:48]} 14. Rab1 {[%clk 0:02:32]}  Rac8 {[%clk 0:02:47]} 15. Rfe1 {[%clk 0:02:31]}  Ne7 {[%clk 0:02:47]} 16. Ne2 {[%clk 0:02:24]}  Nf5 {[%clk 0:02:46]} 17. c3 {[%clk 0:02:25]}  Ne4 {[%clk 0:02:43]} 18. Bf4 {[%clk 0:02:22]}  Rfe8 {[%clk 0:02:34]} 19. Bxd6 {[%clk 0:02:17]}  Nfxd6 {[%clk 0:02:34]} 20. Nd2 {[%clk 0:02:07]}  e5 {[%clk 0:02:28]} 21. Nxe4 {[%clk 0:01:55]}  Nxe4 {[%clk 0:02:21]} 22. Rf1 {[%clk 0:01:49]}  Qg6 {[%clk 0:02:10]} 23. Rbd1 {[%clk 0:01:35]}  exd4 {[%clk 0:02:00]} 24. Qxd4 {[%clk 0:01:23]}  Rcd8 {[%clk 0:01:56]} 25. Nf4 {[%clk 0:01:20]}  Qg5 {[%clk 0:01:53]} 26. Nxd5 {[%clk 0:00:55]}  Kh8 {[%clk 0:01:35]} 27. c4 {[%clk 0:00:52]}  Nd6 {[%clk 0:01:20]} 28. b3 {[%clk 0:00:48]}  Nf5 {[%clk 0:01:19]} 29. Qg4 {[%clk 0:00:45]}  Qxg4 {[%clk 0:00:56]} 30. hxg4 {[%clk 0:00:46]}  Nd6 {[%clk 0:00:55]} 31. Rfe1 {[%clk 0:00:44]}  Ne4 {[%clk 0:00:54]} 32. f3 {[%clk 0:00:40]}  Nc5 {[%clk 0:00:52]} 33. b4 {[%clk 0:00:38]}  Na4 {[%clk 0:00:50]} 34. Kf2 {[%clk 0:00:30]}  Nb2 {[%clk 0:00:49]} 35. Rxe8+ {[%clk 0:00:28]}  Rxe8 {[%clk 0:00:50]} 36. Rd4 {[%clk 0:00:28]}  Rd8 {[%clk 0:00:47]} 37. c5 {[%clk 0:00:28]}  Na4 {[%clk 0:00:43]} 38. Ke3 {[%clk 0:00:28]}  Kh7 {[%clk 0:00:41]} 39. Kd3 {[%clk 0:00:26]}  Nb2+ {[%clk 0:00:41]} 40. Kc2 {[%clk 0:00:25]}  Na4 {[%clk 0:00:41]} 41. Kb3 {[%clk 0:00:22]}  b5 {[%clk 0:00:41]} 42. Nf6+ {[%clk 0:00:19]}  gxf6 {[%clk 0:00:37]} 43. Rxd8 {[%clk 0:00:20]}  f5 {[%clk 0:00:36]} 44. Ra8 {[%clk 0:00:18]}  fxg4 {[%clk 0:00:37]} 45. fxg4 {[%clk 0:00:17]}  Nxc5+ {[%clk 0:00:37]} 46. bxc5 {[%clk 0:00:17]} 1-0


[Site "https://www.chess.com"]

[Event "Titled Tuesday Blitz March 07 Early 2023"]
[White "Lewtak, Damian"]
[Black "Yosha_Iglesias"]
[WhiteFideId "1141724"]
[WhiteElo "2302"]
[BlackElo "2498"]
[Result "1-0"]
[Round "09"]
[TimeControl "180+2"]
[Date "2023.03.07"]
[WhiteClock "0:00:33"]
[BlackClock "0:00:02"]

1. e4 {[%clk 0:02:55]}  c5 {[%clk 0:02:55]} 2. Nf3 {[%clk 0:02:55]}  d6 {[%clk 0:02:55]} 3. Bb5+ {[%clk 0:02:54]}  Bd7 {[%clk 0:02:55]} 4. Bxd7+ {[%clk 0:02:54]}  Qxd7 {[%clk 0:02:56]} 5. O-O {[%clk 0:02:55]}  Nc6 {[%clk 0:02:52]} 6. c3 {[%clk 0:02:55]}  d5 {[%clk 0:02:52]} 7. d3 {[%clk 0:02:50]}  dxe4 {[%clk 0:02:38]} 8. dxe4 {[%clk 0:02:50]}  Qxd1 {[%clk 0:02:38]} 9. Rxd1 {[%clk 0:02:51]}  e6 {[%clk 0:02:39]} 10. Be3 {[%clk 0:02:49]}  Nf6 {[%clk 0:02:12]} 11. Nbd2 {[%clk 0:02:48]}  Be7 {[%clk 0:02:07]} 12. h3 {[%clk 0:02:47]}  O-O {[%clk 0:02:00]} 13. Kf1 {[%clk 0:02:41]}  Rfd8 {[%clk 0:01:57]} 14. Ke2 {[%clk 0:02:41]}  h6 {[%clk 0:01:42]} 15. Nh2 {[%clk 0:02:25]}  Kf8 {[%clk 0:01:39]} 16. Ng4 {[%clk 0:02:21]}  Nxg4 {[%clk 0:01:37]} 17. hxg4 {[%clk 0:02:22]}  b5 {[%clk 0:01:38]} 18. a4 {[%clk 0:02:18]}  a6 {[%clk 0:01:38]} 19. Nb3 {[%clk 0:01:52]}  c4 {[%clk 0:01:28]} 20. Nd4 {[%clk 0:01:48]}  Nxd4+ {[%clk 0:01:23]} 21. Bxd4 {[%clk 0:01:48]}  Bf6 {[%clk 0:00:59]} 22. Bxf6 {[%clk 0:01:21]}  gxf6 {[%clk 0:00:58]} 23. Rxd8+ {[%clk 0:01:20]}  Rxd8 {[%clk 0:00:59]} 24. axb5 {[%clk 0:01:20]}  axb5 {[%clk 0:01:00]} 25. Ra7 {[%clk 0:01:16]}  Rb8 {[%clk 0:00:57]} 26. Rc7 {[%clk 0:01:16]}  e5 {[%clk 0:00:44]} 27. Ke3 {[%clk 0:01:08]}  Kg7 {[%clk 0:00:44]} 28. g3 {[%clk 0:01:07]}  Kg6 {[%clk 0:00:18]} 29. Kf3 {[%clk 0:01:04]}  Rb6 {[%clk 0:00:18]} 30. Kg2 {[%clk 0:01:01]}  Rb8 {[%clk 0:00:15]} 31. Kh3 {[%clk 0:00:59]}  Rb6 {[%clk 0:00:15]} 32. f4 {[%clk 0:00:57]}  Rd6 {[%clk 0:00:10]} 33. Rb7 {[%clk 0:00:46]}  Rd3 {[%clk 0:00:08]} 34. fxe5 {[%clk 0:00:45]}  fxe5 {[%clk 0:00:06]} 35. Rxb5 {[%clk 0:00:45]}  f6 {[%clk 0:00:07]} 36. Rc5 {[%clk 0:00:38]}  Rd2 {[%clk 0:00:07]} 37. Rxc4 {[%clk 0:00:36]}  Rxb2 {[%clk 0:00:08]} 38. Rc8 {[%clk 0:00:36]}  Re2 {[%clk 0:00:08]} 39. c4 {[%clk 0:00:35]}  Rxe4 {[%clk 0:00:07]} 40. Kg2 {[%clk 0:00:35]}  Re3 {[%clk 0:00:07]} 41. c5 {[%clk 0:00:35]}  Rc3 {[%clk 0:00:07]} 42. c6 {[%clk 0:00:36]}  Kg7 {[%clk 0:00:02]} 43. Kf2 {[%clk 0:00:34]}  e4 {[%clk 0:00:02]} 44. c7 {[%clk 0:00:33]} 1-0


[Site "https://www.chess.com"]

[Event "Titled Tuesday Blitz March 07 Early 2023"]
[White "Sielecki, Christof"]
[Black "Zacurdajev, Dmitry"]
[WhiteFideId "4620437"]
[BlackFideId "4196309"]
[WhiteElo "2443"]
[BlackElo "2179"]
[Result "1-0"]
[Round "09"]
[TimeControl "180+2"]
[Date "2023.03.07"]
[WhiteClock "0:00:08"]
[BlackClock "0:00:02"]

1. e4 {[%clk 0:03:00]}  c6 {[%clk 0:02:59]} 2. d4 {[%clk 0:03:00]}  d5 {[%clk 0:03:00]} 3. exd5 {[%clk 0:03:01]}  cxd5 {[%clk 0:03:01]} 4. Bd3 {[%clk 0:03:01]}  Nc6 {[%clk 0:03:02]} 5. c3 {[%clk 0:03:01]}  Nf6 {[%clk 0:03:01]} 6. h3 {[%clk 0:03:01]}  g6 {[%clk 0:03:01]} 7. Nf3 {[%clk 0:03:00]}  Bf5 {[%clk 0:03:02]} 8. O-O {[%clk 0:03:01]}  Ne4 {[%clk 0:03:00]} 9. Re1 {[%clk 0:02:45]}  Bg7 {[%clk 0:02:59]} 10. g4 {[%clk 0:02:23]}  Bc8 {[%clk 0:02:58]} 11. c4 {[%clk 0:02:07]}  Nf6 {[%clk 0:02:22]} 12. g5 {[%clk 0:02:04]}  Nh5 {[%clk 0:02:09]} 13. cxd5 {[%clk 0:02:03]}  Qxd5 {[%clk 0:01:48]} 14. Nc3 {[%clk 0:01:57]}  Qd7 {[%clk 0:01:45]} 15. d5 {[%clk 0:01:53]}  Qxh3 {[%clk 0:00:44]} 16. Bf1 {[%clk 0:01:41]}  Qg4+ {[%clk 0:00:39]} 17. Bg2 {[%clk 0:01:41]}  Nb8 {[%clk 0:00:20]} 18. d6 {[%clk 0:01:27]}  O-O {[%clk 0:00:19]} 19. dxe7 {[%clk 0:01:27]}  Re8 {[%clk 0:00:19]} 20. Nd5 {[%clk 0:01:26]}  Nc6 {[%clk 0:00:18]} 21. Nc7 {[%clk 0:01:20]}  Be6 {[%clk 0:00:18]} 22. Nxa8 {[%clk 0:01:15]}  Rxa8 {[%clk 0:00:19]} 23. Qd6 {[%clk 0:00:43]}  Re8 {[%clk 0:00:18]} 24. Be3 {[%clk 0:00:30]}  Nxe7 {[%clk 0:00:18]} 25. Ne5 {[%clk 0:00:20]}  Bxe5 {[%clk 0:00:14]} 26. Qxe5 {[%clk 0:00:21]}  Bd5 {[%clk 0:00:14]} 27. Qh2 {[%clk 0:00:17]}  Nf5 {[%clk 0:00:14]} 28. Qh3 {[%clk 0:00:16]}  Qc4 {[%clk 0:00:04]} 29. Bxd5 {[%clk 0:00:14]}  Qxd5 {[%clk 0:00:05]} 30. Rad1 {[%clk 0:00:13]}  Qxa2 {[%clk 0:00:04]} 31. Bc5 {[%clk 0:00:12]}  Rc8 {[%clk 0:00:04]} 32. Bd4 {[%clk 0:00:10]}  Nxd4 {[%clk 0:00:03]} 33. Rxd4 {[%clk 0:00:09]}  Qxb2 {[%clk 0:00:04]} 34. Qxc8+ {[%clk 0:00:09]}  Kg7 {[%clk 0:00:05]} 35. Qg4 {[%clk 0:00:08]}  Qc3 {[%clk 0:00:03]} 36. Rdd1 {[%clk 0:00:07]}  b5 {[%clk 0:00:02]} 37. Qd4+ {[%clk 0:00:07]}  Qxd4 {[%clk 0:00:02]} 38. Rxd4 {[%clk 0:00:08]} 1-0


[Site "https://www.chess.com"]